[Event "SixDays Budapest January-GM 2023"]
[Site "Budapest"]
[Date "2023.01.27"]
[Round "7.5"]
[White "Olsen, Filip Boe"]
[Black "Berczes, David"]
[Result "0-1"]
[ECO "E00"]
[WhiteElo "2428"]
[BlackElo "2436"]
[Annotator "TA"]
[PlyCount "54"]
[EventDate "2023.01.23"]
[EventType "tourn"]
[EventCountry "HUN"]
[SourceTitle "playchess.com"]
[Source "ChessBase"]
[SourceQuality "1"]
[TimeControl "5400+30"]

{[%evp 9,53,0,14,-14,0,-36,3,-41,29,-38,-32,-41,-30,-37,-37,-63,-63,-87,-78,-86,-95,-119,-119,-148,-129,-208,-206,-230,-227,-229,-237,-218,-214,-603,-599,-595,-564,-626,-614,-848,-791,-1397,-984,-29998,-29999,-29999]} 1. d4 {[%emt 0:00:03]} Nf6 {[%emt 0:04:00]} 2. c4 {[%emt 0:00:16]} e6 {[%emt 0:00:08]} 3. Bf4 {[%emt 0:00:12]} Bb4+ {[%emt 0:06:40]} 4. Nd2 {[%emt 0:00:14]} d5 {[%emt 0:05:02]} 5. a3 {[%emt 0:03:25]} Bxd2+ {[%emt 0:04:57]} 6. Qxd2 {[%emt 0:04:16] A50: Queen's Fianchetto Defence (1 d4 Nf6 2 c4 b6).} dxc4 {[%emt 0:03:24]} 7. e3 {[%emt 0:05:39] [#]} c5 $146 {[%emt 0:14:34]} ({Predecessor:} 7... Nc6 8. Bxc4 b6 9. Nf3 Bb7 10. O-O O-O 11. Qc2 Qe7 12. Ba2 a6 13. Bb1 Rfe8 {0-1 Sepulveda Brango,A (1288)-Barbosa,L (1276) Cartagena Region-ch 2020 (5)}) 8. dxc5 {[%emt 0:08:21] And now Qxd8+ would win. The position is equal.} Qxd2+ {[%emt 0:02:07]} 9. Kxd2 {[%emt 0:00:03] [#]} c3+ $1 {[%emt 0:03:17]} 10. bxc3 {[%emt 0:07:32]} (10. Kxc3 $2 {too greedy.} Ne4+ 11. Kc2 Nxf2 $17) 10... Ne4+ {[%emt 0:00:16]} 11. Ke1 {[%emt 0:00:29]} Nxc5 {[%emt 0:00:50]} 12. Nf3 {[%emt 0:04:37]} f6 {[%emt 0:05:14]} 13. Nd2 {[%emt 0:11:01] White is now going downhill.} e5 {[%emt 0:01:42]} 14. Bg3 {[%emt 0:01:17]} Ke7 {[%emt 0:08:23]} 15. a4 {[%emt 0:19:00]} Rd8 {[%emt 0:07:28]} 16. Ra3 {[%emt 0:01:35]} Nc6 {[%emt 0:13:15] Black has more active pieces. The white rooks are badly placed.} 17. a5 {[%emt 0:05:27]} (17. f4 $17) 17... Be6 $19 {[%emt 0:03:20]} 18. f3 {[%emt 0:11:18]} b6 {[%emt 0:09:02]} 19. axb6 {[%emt 0:07:44]} axb6 20. Rxa8 {[%emt 0:00:16]} Rxa8 {[%emt 0:00:05]} 21. Be2 $2 {[%emt 0:00:24]} (21. Rg1) 21... Ra1+ {[%emt 0:00:31][%mdl 64] [#] Skewer} 22. Bd1 {[%emt 0:00:01]} Na5 {[%emt 0:03:12]} 23. h4 {[%emt 0:07:44]} h5 {[%emt 0:01:27]} 24. Rf1 {[%emt 0:00:28]} Nc4 {[%emt 0:01:34]} 25. Bf2 {[%emt 0:00:56]} Ra2 {[%emt 0:00:50] ( -> ...Nd3+)} 26. Bb3 {[%emt 0:00:18]} Nd3+ {[%emt 0:00:05] A dynamic duo of knights.} 27. Kd1 {[%emt 0:00:05]} Rxd2# {[%emt 0:00:03] Weighted Error Value: White=1.01/Black=0.24 (precise)} 0-1

[Event "SixDays Budapest January-GM 2023"]
[Site "Budapest"]
[Date "2023.01.27"]
[Round "8.1"]
[White "Pajeken, Jakob Leon"]
[Black "Berczes, David"]
[Result "1/2-1/2"]
[ECO "D30"]
[WhiteElo "2449"]
[BlackElo "2436"]
[Annotator "TA"]
[PlyCount "25"]
[EventDate "2023.01.23"]
[EventType "tourn"]
[EventCountry "HUN"]
[SourceTitle "playchess.com"]
[Source "ChessBase"]
[SourceQuality "1"]
[TimeControl "5400+30"]

{[%evp 11,25,0,-2,-9,-9,-8,-10,-8,-13,-18,-14,0,0,-40,-35,-26]} 1. d4 {[%emt 0:00:01]} d5 {[%emt 0:17:01]} 2. c4 {[%emt 0:00:08]} e6 {[%emt 0:00:57]} 3. Nf3 {[%emt 0:00:08]} Nf6 {[%emt 0:00:14]} 4. e3 {[%emt 0:00:28]} Be7 {[%emt 0:00:23]} 5. Nbd2 {[%emt 0:00:36]} O-O {[%emt 0:01:08]} 6. Bd3 {[%emt 0:01:50]} c5 {[%emt 0:00:53][%cal Ob7b5]} 7. O-O {[%emt 0:02:56] 7.b3 might become the main line. D30: Queen's Gambit Declined: Systems without Nc3.} cxd4 {[%emt 0:02:14]} 8. exd4 {[%emt 0:00:31]} Nc6 {[%emt 0:05:47]} 9. a3 {[%emt 0:00:50] The position is equal.} b6 {[%emt 0:02:20]} 10. b4 {[%emt 0:01:42][%cal Bb2b4,Bb4b5][%mdl 32]} dxc4 {[%emt 0:01:24]} 11. Nxc4 {[%emt 0:00:06]} Bb7 {[%emt 0:01:04]} 12. b5 {[%emt 0:07:59] [#]} Na5 $146 {[%emt 0:02:13]} ({Predecessor:} 12... Nb8 13. Bb2 a6 14. a4 Nbd7 15. Nce5 Nxe5 16. dxe5 Nd5 17. Be4 axb5 18. axb5 Rxa1 19. Qxa1 {1-0 Barona,A-Pazos Gambarrotti,P (2327) Cali op 2008 (2)}) 13. Nxa5 {[%emt 0:03:09] Weighted Error Value: White=0.14 (very precise) /Black=0.00 (flawless)} 1/2-1/2

[Event "SixDays Budapest January-GM 2023"]
[Site "Budapest"]
[Date "2023.01.27"]
[Round "8.2"]
[White "Chen, Qi b"]
[Black "Olsen, Filip Boe"]
[Result "1/2-1/2"]
[ECO "B90"]
[WhiteElo "2484"]
[BlackElo "2428"]
[Annotator "TA"]
[PlyCount "40"]
[EventDate "2023.01.23"]
[EventType "tourn"]
[EventCountry "HUN"]
[SourceTitle "playchess.com"]
[Source "ChessBase"]
[SourceQuality "1"]
[TimeControl "5400+30"]

{[%evp 12,40,15,0,9,3,3,16,52,4,55,24,50,37,169,44,18,0,33,0,7,0,22,0,0,0,56,0,0,0,40]} 1. e4 {[%emt 0:00:04]} c5 {[%emt 0:01:37]} 2. Nf3 {[%emt 0:00:17]} d6 {[%emt 0:00:12]} 3. d4 {[%emt 0:00:31]} cxd4 {[%emt 0:00:13]} 4. Nxd4 {[%emt 0:00:04]} Nf6 {[%emt 0:00:23]} 5. Nc3 {[%emt 0:00:05]} a6 {[%emt 0:00:16]} 6. h3 {[%emt 0:02:41]} e5 {[%emt 0:01:03]} 7. Nb3 {[%emt 0:00:25]} Be6 {[%emt 0:01:08] 7...Be7 is the hot move. B90: Sicilian Najdorf: Unusual White 6th moves, 6 Be3 Ng4 and 6 Be3 e5.} 8. Be3 {[%emt 0:01:00]} Be7 {[%emt 0:03:29]} 9. f4 {[%emt 0:00:21]} Qc7 {[%emt 0:10:28]} 10. Qf3 {[%emt 0:08:05]} (10. f5 $14 {was preferrable.} Bc4 11. g4) 10... b5 {[%emt 0:06:03]} (10... Nc6 $11) 11. O-O-O {[%emt 0:02:19]} Nbd7 {[%emt 0:03:57]} 12. g4 {[%emt 0:14:45] [#] aiming for g5.} exf4 $146 {[%emt 0:21:43]} (12... Rc8 $1 $14 13. g5 Ng8) ({Predecessor:} 12... Rc8 13. Rh2 b4 14. Nd5 Bxd5 15. exd5 Nc5 16. Nxc5 dxc5 17. fxe5 Qxe5 18. Bf4 {1-0 Haubold,C (1638)-Grundmann,D (1215) Sachsen-Anhalt-ch op 2021 (2)}) 13. Bxf4 {[%emt 0:00:20]} (13. e5 $1 $18 Rc8 14. exf6 fxe3 15. fxe7) 13... Ne5 $14 {[%emt 0:00:24]} 14. Qe3 {[%emt 0:02:16]} O-O {[%emt 0:03:12]} 15. Kb1 {[%emt 0:04:37]} (15. g5 $5 {[%cal Rg5f6]} Nh5 16. Bh2 $14) 15... Rfc8 $132 {[%emt 0:05:52][%mdl 2048] [#] ...b4 is the strong threat. Black is not holding back} 16. Rh2 {[%emt 0:02:59]} Qb7 {[%emt 0:10:38]} 17. Na5 {[%emt 0:05:29]} (17. g5 $5 {[%cal Rg5f6]} Nh5 18. Nd5 $11) 17... Qc7 {[%emt 0:00:40]} 18. Nb3 {[%emt 0:00:07]} Qb7 {[%emt 0:00:05] Inhibits Nd5.} 19. Na5 {[%emt 0:11:57]} (19. g5 $5 {[%cal Rg5f6]} Nh5 20. Nd4 $11) 19... Qc7 {[%emt 0:00:10]} 20. Nb3 {[%emt 0:00:06]} Qb7 {Inhibits Nd5.   Weighted Error Value: White=0.29 (precise) /Black=0.30} 1/2-1/2

[Event "SixDays Budapest January-GM 2023"]
[Site "Budapest"]
[Date "2023.01.27"]
[Round "8.4"]
[White "Hacker, Jonas"]
[Black "Lucas, Arthur"]
[Result "1-0"]
[ECO "B40"]
[WhiteElo "2446"]
[BlackElo "2412"]
[Annotator "TA"]
[PlyCount "129"]
[EventDate "2023.01.23"]
[EventType "tourn"]
[EventCountry "HUN"]
[SourceTitle "playchess.com"]
[Source "ChessBase"]
[SourceQuality "1"]
[TimeControl "5400+30"]

{[%evp 9,129,21,16,16,15,6,14,13,25,32,32,33,25,32,28,28,27,10,13,-13,7,-19,-12,-10,-8,0,65,72,81,64,88,74,66,76,300,324,328,59,60,0,407,343,493,481,493,485,497,481,481,491,491,475,466,463,430,427,424,358,366,364,316,0,314,215,513,323,509,463,483,483,619,605,670,666,685,683,678,680,680,672,677,672,663,607,591,573,563,541,672,672,664,661,670,670,670,670,670,668,653,652,636,608,977,969,954,954,946,932,789,756,970,951,881,850,3010,5171,7816,2372,8380,7127,2016,1740]} 1. e4 {[%emt 0:00:05]} c5 {[%emt 0:02:17]} 2. Nf3 {[%emt 0:00:08]} e6 {[%emt 0:00:05]} 3. g3 {[%emt 0:02:12]} Nc6 {[%emt 0:00:57]} 4. Bg2 {[%emt 0:00:26]} Nf6 {[%emt 0:00:17]} 5. Qe2 {[%emt 0:00:47]} e5 {[%emt 0:00:23]} 6. O-O {[%emt 0:01:39] B40: Sicilian: 2...e6, Unusual lines.} Be7 {[%emt 0:01:35]} 7. Nc3 {[%emt 0:04:05]} O-O {[%emt 0:01:30]} 8. Nd5 {[%emt 0:00:40] The position is equal.} Nxd5 {[%emt 0:05:50]} 9. exd5 {[%emt 0:00:07]} Nd4 {[%emt 0:00:02]} 10. Nxd4 {[%emt 0:00:38]} exd4 {[%emt 0:00:02]} 11. Re1 {[%emt 0:00:45]} Bf6 {[%emt 0:02:06] Black is weak on the light squares} 12. d6 {[%emt 0:01:40]} Qb6 {[%emt 0:04:51]} 13. Qc4 {[%emt 0:05:54] White wants to play d3.} Qxd6 {[%emt 0:01:29][%cal Ob7b5] [#]} 14. Bd5 $146 {[%emt 0:10:58]} ({Predecessor:} 14. d3 Qb6 15. Bf4 d6 16. Qd5 Be6 17. Qxd6 Qxd6 18. Bxd6 Rfd8 19. Bxc5 Rac8 20. Ba3 {1-0 Shubin,K (2473)-Suvorov,A (2370) Titled Tuesday intern op 14th Dec blitz 2021 (6)}) 14... g5 {[%emt 0:16:15]} (14... b5 $5 15. Bxf7+ Kh8 $11) 15. a4 {[%emt 0:10:30]} Rb8 {[%emt 0:03:41]} 16. Qb3 {[%emt 0:13:43]} b6 {[%emt 0:19:04]} 17. Qf3 {[%emt 0:00:54]} Bg7 {[%emt 0:02:14]} ({Better is} 17... Bd8 $11) 18. d3 $1 $14 {[%emt 0:10:12]} h6 {[%emt 0:07:41] [#]} 19. h4 $1 {[%emt 0:01:50]} Qf6 {[%emt 0:04:39]} 20. hxg5 {[%emt 0:04:36]} hxg5 {[%emt 0:01:20]} 21. Qh5 {[%emt 0:03:39] Repels Qxf3. White has more active pieces. The black rooks are badly placed.} Bh6 {[%emt 0:00:46] [#]} (21... Qh6 $16 {was called for.} 22. Qxg5 Qxg5 23. Bxg5 Bb7 24. Bxb7 Rxb7) 22. f4 $1 $18 {[%emt 0:10:46][%mdl 512]} gxf4 {[%emt 0:03:30]} 23. Rf1 $2 {[%emt 0:02:09]} (23. Bxf4 $18 Bxf4 24. gxf4) 23... Qg5 $14 {[%emt 0:09:10]} (23... Qg7 $2 24. Bxf4 Bxf4 25. Rxf4 $18) 24. Qf3 {[%emt 0:01:39]} (24. Bxf4 $2 Qxh5 25. Bf3 Qg6 $19) ({White should try} 24. Qxg5+ $1 $14 Bxg5 25. Bxf4 Bxf4 26. Rxf4) 24... Qf6 $2 {[%emt 0:03:06][%mdl 8192]} (24... Qg6 $11) 25. Bxf4 $18 {[%emt 0:04:32]} Bxf4 {[%emt 0:00:03]} 26. Qg4+ {[%emt 0:01:47][%mdl 64] Pin} (26. Qxf4 Qxf4 27. Rxf4 d6 $14) ({Inferior is} 26. gxf4 Re8 $11) 26... Qg7 {[%emt 0:00:01]} 27. Rxf4 {[%emt 0:00:29] Hoping for Qh4.} ({And not} 27. Qxf4 Bb7 28. Bxb7 Rxb7 $11) 27... d6 {[%emt 0:00:45]} 28. Qh4 {[%emt 0:00:21]} Bd7 {[%emt 0:00:51]} (28... Be6 $2 29. Bxe6 fxe6 30. Rg4) 29. Raf1 {[%emt 0:01:23]} Rbe8 {[%emt 0:01:49]} (29... Be6 $2 30. Bxe6 fxe6 31. Rg4 Rxf1+ 32. Kxf1) 30. Bxf7+ {[%emt 0:02:07]} ({Not} 30. Rxf7 Rxf7 31. Bxf7+ Qxf7 $18) 30... Rxf7 {[%emt 0:00:06]} 31. Rxf7 {[%emt 0:00:04]} Qxf7 {[%emt 0:00:21]} 32. Rxf7 {[%emt 0:00:02]} Kxf7 {[%emt 0:00:02][%mdl 4096] Endgame KQ-KRB} 33. Qf4+ {[%emt 0:01:15]} Ke7 {[%emt 0:00:49]} 34. Qe4+ {[%emt 0:00:15]} Kf6 {[%emt 0:00:49]} 35. Qf4+ {[%emt 0:00:42]} Ke7 {[%emt 0:00:11]} 36. g4 {[%emt 0:00:22][%cal Bg3g4,Bg4g5,Bg5g6][%mdl 32]} Rf8 $2 {[%emt 0:01:53]} (36... Bxa4 {was worth a try.} 37. c3 dxc3) 37. Qg5+ {[%emt 0:00:47]} Kf7 {[%emt 0:02:27]} (37... Rf6 $142 38. Qh4 Be8) 38. Qh5+ {[%emt 0:00:31] White is clearly winning.} Ke7 {[%emt 0:00:56]} 39. Qh4+ {[%emt 0:02:00]} Kf7 {[%emt 0:03:03]} 40. Qh7+ {[%emt 0:00:31]} Ke8 {[%emt 0:01:13]} 41. g5 {[%emt 0:00:11]} Rf4 {[%emt 0:01:08]} 42. g6 {[%emt 0:02:15]} Rg4+ {[%emt 0:00:46]} 43. Kf2 {[%emt 0:00:16]} Be6 {[%emt 0:00:30]} 44. Qh8+ {[%emt 0:00:54]} Ke7 {[%emt 0:00:17]} 45. Qg7+ {[%emt 0:00:03]} Ke8 {[%emt 0:00:09]} 46. b3 {[%emt 0:01:09]} Bd5 {[%emt 0:01:09]} 47. Ke1 {[%emt 0:00:55]} Rg1+ {[%emt 0:00:17]} 48. Kd2 {[%emt 0:00:15]} a5 {[%emt 0:00:24]} 49. Qh8+ {[%emt 0:00:41]} Ke7 {[%emt 0:01:11]} 50. g7 {[%emt 0:00:25]} Bf7 {[%emt 0:00:27]} 51. Qf8+ {[%emt 0:00:39]} Ke6 {[%emt 0:01:02]} 52. Ke2 {[%emt 0:00:22]} Rg6 {[%emt 0:00:28]} 53. Kd1 {[%emt 0:00:44]} Rg1+ {[%emt 0:00:30] [#]} 54. Kd2 $1 {[%emt 0:00:01]} Rg6 {[%emt 0:00:31]} 55. Kc1 {[%emt 0:00:02]} d5 {[%emt 0:00:13]} 56. Qd8 {[%emt 0:01:05]} Kf5 {[%emt 0:00:20]} 57. Qc7 {[%emt 0:00:40]} Bg8 {[%emt 0:00:46]} 58. Qc8+ {[%emt 0:00:14]} Be6 {[%emt 0:00:08]} 59. Qf8+ {[%emt 0:00:09]} Kg4 {[%emt 0:01:03]} 60. Qd6 {[%emt 0:00:20]} Kf5 {[%emt 0:00:28]} 61. Qxb6 {[%emt 0:00:43]} Rxg7 {[%emt 0:00:20]} 62. Qxc5 {[%emt 0:00:21]} Ke5 {[%emt 0:00:12]} 63. Kb2 {[%emt 0:00:43]} (63. Qxa5 $142 Rb7 64. Qa8) 63... Bf5 {[%emt 0:00:22]} 64. Qxa5 {[%emt 0:00:28]} Rg2 {[%emt 0:00:03]} 65. Qc7+ {[%emt 0:00:15] Weighted Error Value: White=0.24 (precise) /Black=0.40} 1-0

[Event "SixDays Budapest January-GM 2023"]
[Site "Budapest"]
[Date "2023.01.27"]
[Round "8.5"]
[White "Ghazarian, Kirk"]
[Black "Kozak, Adam"]
[Result "1/2-1/2"]
[ECO "A62"]
[WhiteElo "2466"]
[BlackElo "2558"]
[Annotator "TA"]
[PlyCount "40"]
[EventDate "2023.01.23"]
[EventType "tourn"]
[EventCountry "HUN"]
[SourceTitle "playchess.com"]
[Source "ChessBase"]
[SourceQuality "1"]
[TimeControl "5400+30"]

{[%evp 19,21,15,11,26]} 1. d4 {[%emt 0:00:02]} Nf6 {[%emt 0:02:20]} 2. c4 {[%emt 0:00:05]} e6 {[%emt 0:00:05]} 3. g3 {[%emt 0:00:06]} c5 {[%emt 0:00:05]} 4. d5 {[%emt 0:00:06]} exd5 {[%emt 0:00:05]} 5. cxd5 {[%emt 0:00:07]} d6 {[%emt 0:00:05]} 6. Nc3 {[%emt 0:00:07]} g6 {[%emt 0:00:08]} 7. Bg2 {[%emt 0:00:07]} Bg7 {[%emt 0:00:06]} 8. Nf3 {[%emt 0:00:08]} O-O {[%emt 0:00:22]} 9. O-O {[%emt 0:00:05]} Re8 {[%emt 0:00:14]} 10. Re1 {[%emt 0:00:07]} a6 {[%emt 0:00:19]} 11. a4 {[%emt 0:00:27] [#] A rather calm draw.  A63: Modern Benoni: Fianchetto Variation: 9...Nbd7.} {Predecessor:} Nbd7 $146 12. Qc2 Rb8 13. Bf4 Qc7 14. a5 b5 15. axb6 Rxb6 16. h3 Rb4 17. e4 Qb8 18. Rab1 a5 19. Bf1 h6 20. Nd2 g5 {½-½ Piorun,K (2640)-Nisipeanu,L (2652) Bundesliga 2122 2022 (11.1)} 1/2-1/2

[Event "SixDays Budapest January-GM 2023"]
[Site "Budapest"]
[Date "2023.01.28"]
[Round "9.1"]
[White "Kozak, Adam"]
[Black "Pajeken, Jakob Leon"]
[Result "1/2-1/2"]
[ECO "D26"]
[WhiteElo "2558"]
[BlackElo "2449"]
[Annotator "TA"]
[PlyCount "43"]
[EventDate "2023.01.23"]
[EventType "tourn"]
[EventCountry "HUN"]
[SourceTitle "playchess.com"]
[Source "ChessBase"]
[SourceQuality "1"]
[TimeControl "5400+30"]

{[%evp 22,43,14,14,16,0,0,0,12,12,13,0,5,5,88,13,11,0,0,0,0,0,0,-7]} 1. d4 {[%emt 0:00:32]} d5 {[%emt 0:00:14]} 2. c4 {[%emt 0:00:18]} dxc4 {[%emt 0:00:04]} 3. Nf3 {[%emt 0:00:12]} Nf6 {[%emt 0:00:04]} 4. e3 {[%emt 0:00:07]} e6 {[%emt 0:00:03]} 5. Bxc4 {[%emt 0:00:12]} c5 {[%emt 0:00:04]} 6. O-O {[%emt 0:00:09]} Nc6 {[%emt 0:00:05]} 7. Qe2 {[%emt 0:00:45]} a6 {[%emt 0:00:07]} 8. dxc5 {[%emt 0:00:32]} Bxc5 {[%emt 0:00:07]} 9. a3 {[%emt 0:01:47]} O-O {[%emt 0:02:32]} 10. b4 {[%emt 0:03:56]} Bd6 {[%emt 0:02:55]} 11. Bb2 {[%emt 0:04:36]} Qe7 {[%emt 0:02:53]} 12. Nbd2 {[%emt 0:01:50]} e5 {[%emt 0:07:12] D28: Queen's Gambit Accepted: Classical main line: 7 Qe2 with early ...Nc6.} 13. e4 {[%emt 0:07:57] [#]} b5 $146 {[%emt 0:06:12]} ({Predecessor:} 13... Nh5 14. Rfc1 Bg4 15. Qe3 Nf4 16. g3 Nh3+ 17. Kg2 Bb8 18. Rf1 Ba7 19. Qe1 Qf6 {0-1 Zoler,D (2473)-Parkhov,Y (2428) ISR-chT Israel 2021 (1.4)}) 14. Bd5 {[%emt 0:03:37]} Bb7 {[%emt 0:01:30]} 15. Rfe1 {[%emt 0:07:42]} Rfe8 {[%emt 0:08:48]} 16. Qe3 {[%emt 0:12:17]} Nxd5 {[%emt 0:19:16]} 17. exd5 {[%emt 0:00:09]} Nb8 {[%emt 0:00:42] [#]} (17... Nd8 $11) 18. Bxe5 {[%emt 0:16:13] White is more active.} ({Don't play} 18. Nxe5 Bxe5 19. Bxe5 (19. Qxe5 Qxe5 20. Rxe5 Rxe5 $11) 19... Nd7 $11) (18. Rad1 $1 $16) 18... Bxe5 $11 {[%emt 0:01:34] The position is equal.} 19. Qxe5 {[%emt 0:08:03]} Qxe5 {[%emt 0:00:44]} 20. Rxe5 {[%emt 0:00:12][%cal Re5e8]} Nd7 {[%emt 0:01:45]} 21. Rxe8+ {[%emt 0:06:27]} Rxe8 {[%emt 0:00:06]} 22. a4 {[%emt 0:06:52] Weighted Error Value: White=0.12 (very precise) /Black=0.18 (very precise)} 1/2-1/2

[Event "SixDays Budapest January-GM 2023"]
[Site "Budapest"]
[Date "2023.01.28"]
[Round "9.2"]
[White "Lucas, Arthur"]
[Black "Ghazarian, Kirk"]
[Result "1/2-1/2"]
[ECO "B30"]
[WhiteElo "2412"]
[BlackElo "2466"]
[Annotator "TA"]
[PlyCount "49"]
[EventDate "2023.01.23"]
[EventType "tourn"]
[EventCountry "HUN"]
[SourceTitle "playchess.com"]
[Source "ChessBase"]
[SourceQuality "1"]
[TimeControl "5400+30"]

{[%evp 12,49,-18,-20,-27,-51,-46,-40,-33,-23,-24,-32,-22,-35,0,-15,0,0,0,0,0,0,0,0,0,0,0,0,0,0,0,0,0,0,0,0,5,3,3,6]} 1. e4 {[%emt 0:21:14]} c5 {[%emt 0:00:09]} 2. Nf3 {[%emt 0:00:04]} Nc6 {[%emt 0:00:10]} 3. b4 {[%emt 0:00:32]} cxb4 {[%emt 0:00:48]} 4. d4 {[%emt 0:00:05]} d5 {[%emt 0:00:12]} 5. exd5 {[%emt 0:00:04]} Qxd5 {[%emt 0:00:10]} 6. c4 {[%emt 0:00:03]} bxc3 {[%emt 0:00:12]} 7. Nxc3 {[%emt 0:00:06]} Qa5 {[%emt 0:00:15] B30: Sicilian: 2...Nc6 3 Bb5, lines without ...g6.} 8. Rb1 {[%emt 0:00:42]} e6 {[%emt 0:00:46]} 9. Bd2 {[%emt 0:00:20] [#] aiming for Nb5.} Qd8 {[%emt 0:03:30] Black is slightly better.} 10. Bb5 {[%emt 0:03:28] Threatens to win with Ne5.} Bd6 {[%emt 0:15:01]} 11. Ne4 {[%emt 0:13:51]} Bc7 {[%emt 0:03:01] [#]} 12. h4 $146 {[%emt 0:00:42]} ({Predecessor:} 12. O-O Nge7 13. Bb4 O-O 14. Ba3 f6 15. Qc2 Re8 16. Rfc1 Nd5 17. g3 a6 18. Bxc6 bxc6 {½-½ Roebuck,D (2270)-Whaley,M (2342) AUS CM email 2015}) 12... Nge7 {[%emt 0:02:34]} 13. Nfg5 $1 {[%emt 0:06:27] The position is equal.} h6 {[%emt 0:31:11]} ({Don't do} 13... Qxd4 14. Qh5 g6 15. Qf3 $16) 14. Qh5 {[%emt 0:00:50]} Ng6 $1 {[%emt 0:01:05]} (14... hxg5 $2 15. Qxh8+ Kd7 16. Qxg7 $18) (14... O-O $2 15. Nf6+ Kh8 16. Nxf7+ Rxf7 17. Qxf7 $18) 15. Bxc6+ {[%emt 0:01:52]} bxc6 {[%emt 0:00:02]} 16. Nxf7 {[%emt 0:00:06]} Kxf7 {[%emt 0:01:02]} 17. Rh3 {[%emt 0:00:06] [#] Rf3+ is the strong threat.} Rf8 {[%emt 0:07:16] And now ...Ba6 would win.} (17... Qxd4 $2 18. Rf3+ $18) 18. Rf3+ {[%emt 0:03:19]} Kg8 {[%emt 0:00:15]} (18... Ke7 $2 19. Bb4+ $18) 19. Qxg6 {[%emt 0:00:07]} Rxf3 {[%emt 0:04:02]} 20. gxf3 {[%emt 0:00:01]} Ba5 $1 {[%emt 0:01:34]} 21. Bxa5 {[%emt 0:09:10]} Qxa5+ {[%emt 0:00:06]} 22. Kf1 {[%emt 0:00:04] Threatening mate with Nf6+. Dancing on a razor blade.} Ba6+ {[%emt 0:01:45]} 23. Kg2 {[%emt 0:00:20]} Qf5 {[%emt 0:00:46] Against Nc5} 24. Qxf5 {[%emt 0:13:14]} exf5 {[%emt 0:00:08]} 25. Nd6 {[%emt 0:00:06] Weighted Error Value: White=0.02 (flawless) /Black=0.04 (flawless)} 1/2-1/2